bitfinex/quotes_ETHUSD_20251212
["timestamp","ask_amount","ask_price","bid_price","bid_amount"]
[1765502403445,0.1888,3232.0,3231.1,0.6176]
[1765502403608,3.28286968,3232.0,3231.1,0.6176]
[1765502403809,6.87483936,3232.0,3231.1,1.1146]
[1765502404036,0.4979,3231.9,3231.1,1.1146]
[1765502404551,3.09425088,3231.8,3231.1,1.1146]
[1765502405109,6.68622368,3231.9,3231.1,1.1146]
[1765502405332,6.68622368,3231.9,3230.7,0.497]
[1765502405333,0.4139,3231.2,3230.7,0.497]
[1765502405534,0.4139,3231.2,3230.5,0.497]
[1765502405726,0.9109,3231.2,3230.4,0.77017529]
[1765502405905,0.9109,3231.2,3230.4,0.1897]
[1765502406106,0.497,3231.1,3230.4,0.94283282]
[1765502406431,0.497,3231.1,3230.6,3.09539545]
[1765502406736,3.0946339,3231.4,3230.5,3.09546382]
[1765502406933,3.0946339,3231.4,3229.9,3.09601832]
[1765502406934,6.1892678,3231.4,3230.1,0.1897]
[1765502407133,0.9949,3231.3,3230.1,0.1897]
[1765502407446,1.52578017,3231.2,3230.1,3.28555932]
[1765502407804,0.4979,3231.1,3230.1,3.28555932]
[1765502408027,0.4979,3231.1,3230.2,3.09577296]
[1765502408230,0.4979,3231.1,3230.1,0.1897]
[1765502408430,0.4979,3231.1,3230.4,3.09558625]
[1765502408626,3.09501702,3231.0,3230.2,3.09571633]
[1765502409139,0.198,3230.9,3230.2,3.09571633]
[1765502410227,0.497,3231.3,3230.3,0.4594]
[1765502410528,4.08969312,3231.3,3230.3,0.4594]
[1765502410729,7.18448624,3231.3,3230.2,3.82949102]
[1765502410931,7.18448624,3231.3,3230.3,0.4594]
[1765502410932,4.08969312,3231.3,3230.3,0.4594]
[1765502411133,7.18448624,3231.3,3230.3,0.4594]
[1765502411328,7.18448624,3231.3,3230.3,1.21683746]
[1765502411515,4.08969312,3231.3,3230.4,0.4594]
[1765502411916,7.18448624,3231.3,3230.4,0.4594]
[1765502412612,0.4979,3231.2,3230.4,0.4594]
[1765502412939,3.09492123,3231.1,3230.2,3.09571633]
[1765502413240,3.09492123,3231.1,3230.3,0.68513893]
[1765502414347,3.57772123,3231.1,3230.3,0.68513893]
[1765502414642,0.002,3232.1,3230.3,0.68513893]
[1765502414643,0.002,3232.1,3231.0,0.4638]
[1765502414955,4.07295514,3231.9,3231.0,0.4638]
[1765502415110,7.16712617,3231.9,3231.0,0.4638]
[1765502415316,1.21839262,3231.8,3230.7,0.496]
[1765502415642,0.4828,3231.8,3230.4,3.09559187]
[1765502415818,0.4828,3231.7,3230.4,3.09559187]
[1765502416017,0.4828,3231.7,3230.5,0.496]
[1765502416440,0.4828,3231.7,3230.4,3.09559187]
[1765502416745,0.4828,3231.7,3230.5,4.06156374]
[1765502416746,3.09444238,3231.6,3230.5,4.06156374]
[1765502416946,0.496,3231.9,3230.6,1.48768566]
[1765502417129,3.09430145,3231.8,3230.6,1.45673166]
[1765502417449,3.09430145,3231.8,3230.7,0.4701]
[1765502417821,0.4828,3231.7,3230.7,0.4701]
[1765502418748,3.09444238,3231.6,3230.8,3.09520861]
[1765502419044,3.09444238,3231.6,3230.8,3.80189154]
[1765502419250,3.55154238,3231.6,3230.8,3.80189154]
[1765502419614,0.4571,3231.6,3230.8,6.89710015]
[1765502419819,0.4571,3231.6,3230.8,3.80189154]
[1765502420021,0.4571,3231.6,3230.8,6.89710015]
[1765502420222,0.4571,3231.6,3230.9,0.73672002]
[1765502420824,0.4571,3231.6,3230.9,3.8317678]
[1765502421321,3.55154694,3231.6,3230.9,3.8317678]
[1765502421522,0.4571,3231.6,3230.9,3.8317678]
[1765502421839,0.496,3231.9,3231.0,0.4882]
[1765502422039,0.4591,3232.1,3231.1,0.79110806]
[1765502422040,0.002,3232.1,3231.1,0.79110806]
[1765502422252,3.09353122,3232.6,3231.1,0.79110806]
[1765502422253,0.19,3232.5,3232.0,0.4523]
[1765502422542,0.4571,3232.7,3232.0,0.4523]
[1765502422543,0.6471,3232.7,3232.0,0.4523]
[1765502422739,6.83392484,3232.7,3232.0,0.4523]
[1765502422939,0.314,3232.1,3231.5,0.496]
[1765502423150,0.0031,3231.9,3231.2,3.09482545]
[1765502423319,0.18509975,3232.3,3231.2,3.09482545]
[1765502423528,0.18379993,3231.8,3231.3,0.496]
[1765502423953,7.10981732,3232.7,3231.7,0.4523]
[1765502424154,0.71098173,3232.6,3231.7,0.9483]
[1765502424349,3.28341242,3232.7,3231.7,0.9483]
[1765502424350,0.19,3232.7,3231.8,0.4882]
[1765502424550,0.002,3233.0,3231.8,0.4882]
[1765502424847,3.09258671,3233.6,3232.0,3.0940594]
[1765502425055,0.19,3232.9,3232.0,3.0940594]
[1765502425258,0.19,3232.9,3232.0,3.5822594]
[1765502425463,0.19,3232.9,3232.1,1.19638491]
[1765502425661,0.19,3232.9,3232.2,0.497]
[1765502425863,0.19,3232.9,3232.3,0.497]
[1765502426163,0.37849988,3233.2,3232.3,0.497]
[1765502426461,3.09252845,3233.6,3232.3,0.9852]
[1765502426645,0.35885285,3233.5,3232.4,0.4882]
[1765502426962,3.09271973,3233.4,3232.5,3.09358081]
[1765502427665,6.18543946,3233.4,3232.4,3.58186205]
[1765502428167,6.56393946,3233.4,3232.5,0.497]
[1765502428369,0.35885285,3233.5,3232.5,0.9852]
[1765502428571,0.496,3233.7,3232.5,1.70245386]
[1765502428750,0.496,3233.7,3232.6,0.4882]
[1765502428934,3.58843708,3233.7,3232.7,3.09338942]
[1765502429273,3.96693708,3233.7,3232.7,3.09338942]
[1765502429442,7.05937416,3233.7,3232.7,3.09338942]
[1765502429641,0.70593742,3233.6,3232.7,3.09338942]
[1765502429841,0.70593742,3233.6,3232.7,6.18677884]
[1765502430254,0.3785,3233.5,3232.6,3.09345371]
[1765502430643,0.3785,3233.5,3232.7,0.496]
[1765502430867,0.3785,3233.5,3232.3,3.09376266]
[1765502431180,6.18543946,3233.4,3232.4,3.58966539]
[1765502431367,0.65639395,3233.3,3232.4,3.58966539]
[1765502431567,1.03489395,3233.3,3232.4,0.496]
[1765502431744,0.3785,3233.2,3232.3,0.496]
[1765502431944,0.8745,3233.2,3231.7,0.4882]
[1765502432150,0.3785,3233.1,3231.3,0.1821]
[1765502432367,0.3785,3233.1,3231.4,0.496]
[1765502432556,0.3785,3233.1,3231.6,0.58047529]
[1765502432745,0.3785,3233.1,3231.9,3.09413461]
[1765502432940,0.3785,3233.1,3231.9,3.59013461]
[1765502433140,6.18620476,3233.0,3231.9,3.59013461]
[1765502433342,6.18620476,3233.0,3232.0,0.4882]
[1765502433567,0.61862048,3232.9,3231.8,3.09424837]
[1765502433770,0.99712048,3232.9,3231.9,0.496]
[1765502433972,0.99712048,3232.9,3230.8,0.58047529]
[1765502433973,0.0038,3232.0,3230.8,0.58047529]
[1765502434174,0.0038,3232.0,3231.1,0.1821]
[1765502434175,0.496,3232.0,3231.1,0.1821]
[1765502434477,0.6082,3231.9,3230.8,3.09517071]
[1765502434636,0.6082,3231.9,3230.9,3.59210264]
[1765502434835,0.4556,3231.8,3230.9,3.59210264]
[1765502435036,3.09427199,3231.8,3230.9,3.59210264]
[1765502435240,3.46840919,3231.8,3231.0,0.4882]
[1765502435438,3.81650919,3231.8,3230.9,3.59210264]
[1765502436341,0.3481,3231.7,3230.9,3.09510264]
[1765502437044,3.09444238,3231.6,3230.8,3.09520861]
[1765502437665,3.44254238,3231.6,3230.8,3.09520861]
[1765502437973,3.59337985,3231.9,3230.9,0.4882]
[1765502438178,0.3481,3231.8,3230.9,0.497]
[1765502439178,3.09434662,3231.7,3230.9,3.59205697]
[1765502439379,3.44236216,3231.8,3230.9,3.59205697]
[1765502439546,0.1511,3232.2,3231.0,0.51915017]
[1765502439880,0.1511,3232.2,3231.7,0.4523]
[1765502440080,3.09377309,3232.3,3231.7,0.4523]
[1765502440476,3.44166811,3232.6,3231.5,0.497]
[1765502440477,3.59029373,3232.8,3232.2,0.4523]
[1765502440683,3.59029373,3232.8,3231.8,0.4882]
[1765502440861,3.59029373,3232.8,3231.1,0.902732]
[1765502440862,6.68358746,3232.8,3231.1,0.902732]
[1765502441062,1.07832079,3232.7,3231.4,0.4882]
[1765502441252,6.18697024,3232.6,3231.5,3.09453814]
[1765502441447,6.53507024,3232.6,3231.4,3.58280425]
[1765502441656,0.3481,3232.5,3231.4,3.58280425]
[1765502441979,0.3481,3232.5,3231.3,3.0946536]
[1765502442177,0.65350702,3232.4,3231.1,1.390932]
[1765502442475,0.65350702,3232.4,3231.1,0.1821]
[1765502442476,0.497,3232.3,3231.1,0.1821]
[1765502442680,0.8451,3232.3,3231.0,0.497]
[1765502442880,0.3481,3232.2,3231.0,0.497]
[1765502443080,0.3481,3232.2,3231.2,3.09473998]
[1765502443279,3.09394004,3232.2,3231.1,0.1982]
[1765502443478,0.359094,3232.1,3231.2,3.57602545]
[1765502443782,0.707194,3232.1,3231.1,3.29309664]
[1765502444584,0.359094,3232.1,3231.2,0.4812]
[1765502445484,3.5907915,3232.3,3231.3,3.09472967]
[1765502445686,6.684583,3232.3,3231.3,3.09472967]
[1765502445876,3.5907915,3232.3,3231.4,0.4812]
[1765502446055,0.497,3232.3,3231.5,0.496]
[1765502446256,0.1511,3233.1,3231.5,0.496]
[1765502446462,0.1511,3233.1,3232.2,0.4956]
[1765502446656,0.1511,3233.1,3232.3,0.496]
[1765502446859,6.33712849,3233.1,3232.0,0.497]
[1765502447062,0.3481,3233.0,3232.0,0.497]
[1765502447258,0.66852285,3232.9,3231.4,0.58047529]
[1765502447473,0.66852285,3232.9,3231.5,3.59153814]
[1765502447474,6.18658746,3232.8,3231.5,3.59153814]
[1765502447670,0.3481,3232.8,3231.5,3.59153814]
[1765502447869,0.66852285,3232.9,3231.8,0.58047529]
[1765502447870,3.09322939,3232.9,3231.8,0.58047529]
[1765502448068,6.18645878,3232.9,3231.9,0.9782]
[1765502448274,0.61864588,3232.8,3231.9,0.4812]
[1765502448566,0.96674588,3232.8,3232.0,0.497]
[1765502448758,0.96674588,3232.8,3231.9,0.4812]
[1765502448987,0.3481,3232.7,3231.6,1.06167529]
[1765502449287,0.3481,3232.7,3231.7,0.497]
[1765502449985,0.61864588,3232.8,3231.7,0.497]
[1765502449986,3.09348512,3232.6,3231.7,0.497]
[1765502450185,3.71201059,3232.8,3231.7,1.38546142]
[1765502450559,3.71201059,3232.8,3231.8,0.4812]
[1765502450755,0.6481,3233.1,3231.8,0.4812]
[1765502450960,0.6481,3233.1,3231.9,10.068435]
[1765502451389,0.6481,3233.1,3231.7,0.90426142]
[1765502451390,0.6481,3233.1,3232.0,0.4812]
[1765502451689,3.09315136,3233.0,3232.0,0.4812]
[1765502451990,3.09315136,3233.0,3232.1,3.09396367]
[1765502452176,3.77657797,3233.0,3232.2,0.497]
[1765502452375,3.77657797,3233.0,3232.2,0.9782]
[1765502452579,3.09303562,3233.1,3232.2,0.9782]
[1765502452892,3.09303562,3233.1,3232.3,0.4812]
[1765502453089,3.09271973,3233.4,3232.3,0.4812]
[1765502454077,6.18543946,3233.4,3232.4,3.09367652]
[1765502454375,3.09271973,3233.4,3232.4,6.18735304]
[1765502454680,3.58863266,3233.5,3232.5,1.1480553]
[1765502455381,3.58863266,3233.5,3232.6,0.4812]
[1765502455583,3.58863266,3233.5,3232.7,0.496]
[1765502456081,6.68126532,3233.5,3232.7,0.496]
[1765502456264,1.01622653,3233.4,3232.7,0.496]
[1765502456787,0.4977,3232.8,3232.3,0.496]
[1765502456987,0.0015,3232.7,3232.0,3.09397268]
[1765502457187,0.0015,3232.7,3232.1,0.496]
[1765502457508,0.0015,3232.7,3232.1,3.58989757]
[1765502457691,0.1496,3232.8,3232.2,3.09379578]
[1765502457864,0.1496,3232.8,3232.1,1.693724]
[1765502458265,3.24294146,3232.8,3232.1,4.78761589]
[1765502458466,3.24294146,3232.8,3232.1,1.693724]
[1765502458895,0.0035,3232.2,3231.6,3.59037424]
[1765502459081,0.3495,3232.7,3231.5,0.496]
[1765502459400,0.3495,3232.6,3231.5,0.496]
[1765502460201,6.18716162,3232.5,3231.5,0.496]
[1765502460369,0.65366616,3232.4,3231.5,0.496]
[1765502460570,1.00316616,3232.4,3231.5,3.59051815]
[1765502461298,0.65366616,3232.4,3231.6,0.4812]
[1765502461486,3.09358081,3232.5,3231.6,0.4812]
[1765502461800,6.53666162,3232.5,3231.6,0.4812]
[1765502461978,6.53666162,3232.5,3231.5,3.59053814]
[1765502461979,6.18716162,3232.5,3231.7,0.496]
[1765502462180,0.3495,3232.4,3231.7,0.496]
[1765502462376,0.6456,3232.8,3231.7,0.9772]
[1765502462377,3.73898507,3232.8,3231.7,0.9772]
[1765502462583,3.09338942,3232.7,3231.7,7.16589199]
[1765502462782,3.09338942,3232.7,3231.8,0.4812]
[1765502462977,0.66812653,3233.4,3231.8,0.4812]
[1765502462978,6.18563076,3233.3,3231.8,0.4812]
[1765502463204,0.68537573,3233.2,3232.1,4.10327]
[1765502463375,0.496,3233.5,3233.2,0.4956]
[1765502463689,6.18521431,3233.6,3232.8,0.496]
[1765502464476,9.27701154,3233.8,3232.6,0.4812]
[1765502464676,9.62511154,3233.8,3232.6,0.496]
[1765502464881,0.3481,3233.7,3232.6,0.496]
[1765502465083,0.96251115,3233.6,3232.6,3.58944081]
[1765502465499,0.3481,3233.5,3232.6,3.58944081]
[1765502465696,0.3481,3233.7,3232.7,3.09338622]
[1765502466273,0.3481,3233.7,3232.8,3.09329104]
[1765502466477,3.09252845,3233.6,3232.7,3.09338942]
[1765502466782,3.09252845,3233.6,3232.6,0.9772]
[1765502466783,6.1850569,3233.6,3232.8,0.40705894]
[1765502467104,6.1850569,3233.6,3232.6,4.07066751]
[1765502467304,0.3481,3233.5,3232.6,4.07066411]
[1765502467689,0.3481,3233.5,3232.6,0.9772]
[1765502467877,0.3481,3233.5,3232.6,4.07066612]
[1765502468203,0.3481,3233.5,3232.7,0.40706661]
[1765502468779,3.09271973,3233.4,3232.7,0.40706661]
[1765502469485,3.09271973,3233.4,3232.7,3.50044479]
[1765502470006,3.09271973,3233.4,3232.8,0.4812]
[1765502470209,3.09240536,3233.8,3232.8,0.4812]
[1765502470403,3.09240536,3233.8,3232.9,0.70750342]
[1765502470777,3.09240536,3233.8,3233.0,0.9772]
[1765502470977,6.18481072,3233.8,3233.0,0.9772]
[1765502471259,3.09240536,3233.8,3232.9,3.80069007]
[1765502471392,3.09240536,3233.8,3232.9,3.09319358]
[1765502471583,3.09240536,3233.8,3233.0,0.4812]
[1765502472393,3.09240536,3233.8,3232.9,3.09319358]
[1765502472594,3.09240536,3233.8,3233.0,0.4812]
[1765502473104,0.4637,3233.7,3232.8,0.496]
[1765502473415,0.82254054,3233.7,3232.8,0.496]
[1765502473590,0.82254054,3233.7,3232.6,0.1968]
[1765502473797,0.4637,3233.6,3232.7,0.496]
[1765502473995,0.4637,3233.6,3232.6,0.1968]
[1765502474307,1.47367566,3233.6,3232.7,0.496]
[1765502474921,0.4637,3233.5,3232.6,0.1968]
[1765502475144,0.4637,3233.5,3232.6,0.495]
[1765502475145,6.18543946,3233.4,3232.6,0.495]
[1765502475311,6.18543946,3233.4,3232.4,0.1968]
[1765502475515,0.4637,3233.3,3232.4,3.78547006]
[1765502476244,0.4637,3233.3,3232.4,0.6918]
[1765502477009,0.4637,3233.3,3232.4,3.78540066]
[1765502477658,3.09291104,3233.2,3232.4,0.6918]
[1765502477866,3.09291104,3233.2,3231.9,0.28300997]
[1765502477867,0.0854,3232.5,3232.0,0.58047529]
[1765502478151,0.0854,3232.5,3231.9,0.495]
[1765502478152,0.6964,3232.5,3231.9,0.495]
[1765502478711,0.6964,3232.5,3231.4,0.495]
[1765502478712,0.0046,3232.0,3231.4,0.495]
[1765502478937,0.0046,3232.0,3231.4,3.58962935]
[1765502479139,0.0046,3232.0,3231.4,0.89922294]
[1765502479347,0.0046,3232.0,3231.5,3.09452937]
[1765502479551,0.3556611,3233.1,3231.5,3.09452937]
[1765502479552,3.24394446,3233.3,3232.0,2.649145]
[1765502479721,3.24394446,3233.3,3232.3,0.6734]
[1765502479919,6.80048892,3233.3,3232.3,0.6734]
[1765502480221,6.80048892,3233.3,3232.3,1.09963637]
[1765502480524,0.4638,3233.2,3232.3,1.09963637]
[1765502480762,0.4638,3233.2,3231.7,0.28300997]
[1765502480763,0.0854,3232.4,3232.1,0.495]
[1765502481853,0.0854,3232.4,3231.8,0.58047529]
[1765502482056,0.28909931,3232.5,3231.8,0.495]
[1765502482222,0.495,3233.0,3231.8,0.495]
[1765502482423,3.09319805,3232.9,3231.8,0.495]
[1765502482745,3.45201786,3232.9,3231.8,4.05034922]
[1765502482945,6.5452822,3232.9,3231.8,4.05034922]
[1765502483445,6.5452822,3232.9,3231.9,0.4611]
[1765502483446,3.45201786,3232.9,3231.9,0.4611]
[1765502483815,9.23268753,3232.9,3231.7,0.18]
[1765502484019,0.97276875,3232.8,3231.5,3.0944701]
[1765502484254,0.97276875,3232.8,3231.6,3.09442676]
[1765502484628,0.97276875,3232.8,3231.7,3.55544182]
[1765502484947,0.97276875,3232.8,3231.5,0.495]
[1765502484948,0.97276875,3232.8,3231.6,3.09441615]
[1765502485445,0.97276875,3232.8,3231.5,4.63109617]
[1765502485659,1.02054563,3232.7,3231.6,0.4611]
[1765502485821,3.09348512,3232.6,3231.6,0.4611]
[1765502486021,0.35881981,3232.9,3231.7,3.09425348]
[1765502486225,3.09319805,3232.9,3231.7,6.21954356]
[1765502486445,3.09319805,3232.9,3231.8,0.4611]
[1765502487548,6.1863961,3232.9,3231.9,0.496]
[1765502487954,6.1863961,3232.9,3231.8,0.9571]
[1765502488149,0.66813961,3232.8,3231.8,4.05133758]
[1765502488355,6.1863961,3232.9,3231.9,0.4611]
[1765502488724,3.09319805,3232.9,3231.9,0.4611]
[1765502489056,6.1863961,3232.9,3231.9,0.4611]
[1765502489938,3.09319805,3232.9,3231.9,3.55517019]
[1765502490123,3.09319805,3232.9,3231.9,0.4611]
[1765502490322,0.35881979,3232.8,3231.9,0.9571]
[1765502491035,0.35881979,3232.8,3231.8,0.496]
[1765502491423,0.35881979,3232.8,3231.8,3.59023675]
[1765502491628,0.35881979,3232.8,3231.8,0.496]
[1765502492031,6.18677884,3232.7,3231.7,3.09431557]
[1765502492358,6.18677884,3232.7,3231.7,4.26991053]
[1765502492736,6.18677884,3232.7,3231.7,3.80881053]
[1765502492938,6.18677884,3232.7,3231.8,0.4611]
[1765502493141,0.35881979,3232.8,3231.8,0.4611]
[1765502493142,3.45213676,3232.8,3231.8,0.4611]
[1765502493334,3.09331697,3232.8,3231.8,0.4611]
[1765502493533,0.4949999,3233.0,3231.9,0.03094155]
[1765502493801,3.09115552,3235.1,3232.9,0.4712]
[1765502493802,3.19424156,3233.9,3232.9,0.4712]
[1765502493960,0.495,3233.8,3233.0,3.09310238]
[1765502494162,0.495,3233.8,3233.0,7.003735]
[1765502494366,3.09161133,3234.6,3233.0,7.003735]
[1765502494367,0.51318985,3234.7,3233.7,0.4712]
[1765502494561,0.0337,3233.8,3233.1,0.6411]
[1765502494860,0.26469929,3234.1,3233.2,0.495]
[1765502495159,6.18352702,3234.4,3233.2,0.495]
[1765502495456,6.18352702,3234.4,3233.1,0.675]
[1765502495457,0.6294127,3234.3,3233.1,0.675]
[1765502496148,6.67890946,3234.2,3233.1,0.18]
[1765502496657,6.24865882,3234.2,3233.1,0.18]
[1765502497060,9.34061355,3234.2,3233.0,0.495]
[1765502497354,9.34061355,3234.2,3232.3,0.28300997]
[1765502497355,7.16843966,3234.1,3232.2,3.27379898]
[1765502497558,8.16544229,3234.1,3232.2,1.0484899]
[1765502497763,8.16544229,3234.1,3231.9,0.6411]
[1765502497764,7.16843966,3233.6,3231.9,0.6411]
[1765502497952,9.27815919,3233.4,3231.9,0.6411]
[1765502498128,9.27815919,3233.4,3231.9,1.22157529]
[1765502498329,9.27815919,3233.4,3231.9,0.18]
[1765502498662,0.97731592,3233.3,3231.9,0.18]
[1765502499166,0.97731592,3233.3,3231.9,0.6411]
[1765502499332,0.97731592,3233.3,3231.7,0.4611]
[1765502499333,7.16843966,3233.2,3231.7,0.4611]
[1765502499730,0.97731592,3233.3,3231.7,0.4611]
[1765502499937,6.18601342,3233.1,3231.7,3.55537387]
[1765502500348,6.18601342,3233.1,3231.8,0.4611]
[1765502500957,0.495,3233.0,3231.8,0.4611]
[1765502502068,6.1863961,3232.9,3231.8,3.55527842]
[1765502502537,6.1863961,3232.9,3231.9,0.4611]
[1765502502863,5.65629249,3232.9,3231.5,0.18]
[1765502503036,5.50844555,3232.9,3231.6,0.495]
[1765502503363,8.6016436,3232.9,3231.6,0.495]
[1765502503741,11.69484165,3232.9,3231.5,0.18]
[1765502503942,7.16843966,3232.7,3230.8,0.4994]
[1765502504155,6.18716162,3232.5,3230.9,3.09510125]
[1765502504357,6.18716162,3232.5,3231.1,0.58047529]
[1765502504358,3.09358081,3232.5,3231.1,0.58047529]
[1765502504555,7.16843966,3233.3,3231.4,10.24444]
[1765502504556,3.09319805,3232.9,3231.4,10.24444]
[1765502504795,3.09319805,3232.9,3231.6,7.124881]
[1765502504953,3.09319805,3232.9,3231.8,7.845352]
[1765502505138,3.09310238,3233.0,3231.7,9.105352]
[1765502505343,3.09310238,3233.0,3231.9,7.924152]
[1765502505553,3.09271973,3233.4,3231.9,7.924152]
[1765502505765,0.66803963,3233.3,3232.0,1.3417552]
[1765502506083,0.66803963,3233.3,3232.1,0.495]
[1765502506386,6.18582208,3233.2,3232.1,4.27524317]
[1765502506540,6.18582208,3233.2,3232.1,1.1813]
[1765502506742,6.18582208,3233.2,3232.2,0.4994]
[1765502507669,3.09291104,3233.2,3232.2,0.4994]
[1765502507869,3.7608578,3233.3,3232.2,0.4994]
[1765502507870,6.18429188,3234.0,3233.1,0.6371]
[1765502508082,3.0920468,3234.2,3233.2,0.9452]
[1765502508283,0.1106,3234.5,3233.3,3.09281538]
[1765502508572,0.1106,3234.5,3233.3,3.59221538]
[1765502508827,0.1106,3234.5,3233.4,0.4994]
[1765502508828,3.20229255,3234.5,3233.4,0.4994]
[1765502508941,0.002,3234.5,3233.5,3.71315]
[1765502509272,3.09426428,3235.0,3233.5,3.71315]
[1765502509495,6.18266559,3234.9,3233.6,0.4994]
[1765502510352,6.1854898,3235.0,3233.7,0.495]
[1765502510571,0.97716244,3234.9,3233.7,0.90368981]
[1765502510882,0.97716244,3234.9,3233.8,0.495]
[1765502511066,0.97716244,3234.9,3233.1,0.1869]
[1765502511067,7.16843966,3234.8,3233.1,0.1869]
[1765502511379,0.495,3234.7,3233.3,3.0927813]
[1765502511587,0.495,3234.7,3233.4,0.4994]
[1765502511878,0.495,3234.7,3233.4,4.08702409]
[1765502512078,0.495,3234.7,3233.4,0.9944]
[1765502512287,0.495,3234.7,3233.5,0.495]
[1765502512481,9.27471711,3234.6,3233.1,0.1869]
[1765502512644,0.97697171,3234.5,3233.3,0.495]
[1765502514257,0.97697171,3234.5,3233.2,0.4994]
[1765502514460,6.18352708,3234.4,3233.3,0.495]
[1765502514949,6.18352708,3234.4,3232.8,0.4994]
[1765502514950,9.27529062,3234.4,3233.0,0.495]
[1765502515151,1.02522623,3234.3,3232.8,0.6863]
[1765502515449,0.495,3234.2,3232.9,0.495]
[1765502515654,0.495,3234.2,3232.9,0.9944]
[1765502515855,0.495,3234.2,3233.0,0.495]
[1765502516053,0.495,3234.2,3233.0,0.9944]
[1765502516258,0.495,3234.2,3233.0,4.08749439]
[1765502516493,6.18410066,3234.1,3233.1,3.5923499]
[1765502516717,6.18410066,3234.1,3233.1,0.4994]
[1765502517723,6.18410066,3234.1,3233.1,3.59233222]
[1765502517724,3.09205033,3234.1,3233.1,3.59233222]
[1765502517893,2.70155576,3234.1,3233.2,0.4994]
[1765502518220,0.495,3234.6,3233.2,1.21744118]
[1765502518421,3.09166795,3234.5,3233.2,1.21744118]
[1765502518605,6.18335365,3234.5,3233.3,6.68503076]
[1765502518815,3.09166795,3234.5,3233.3,3.59221538]
[1765502519017,3.09166795,3234.5,3233.4,0.4994]
[1765502519190,3.09166795,3234.5,3233.5,0.35922154]
[1765502519390,5.98491987,3234.5,3233.6,0.495]
[1765502519608,3.0916857,3234.5,3233.6,0.495]
[1765502519809,9.27503935,3234.5,3233.4,0.4994]
[1765502519990,9.27503935,3234.5,3233.5,0.495]
[1765502520200,0.92750394,3234.4,3233.4,0.4994]
[1765502520405,0.92750394,3234.4,3233.5,0.495]
[1765502520606,6.18371826,3234.3,3233.5,0.495]
[1765502520909,6.03587132,3234.3,3233.5,0.495]
[1765502521115,6.18371826,3234.3,3233.5,0.495]
[1765502521420,6.70258152,3234.3,3233.6,0.9944]
[1765502521631,5.88990134,3234.3,3233.7,0.495]
[1765502521834,2.5285469,3234.3,3233.7,0.495]
[1765502521999,0.23842257,3234.4,3233.7,0.495]
[1765502522200,6.18314474,3234.6,3233.7,0.495]
[1765502522427,6.16728668,3234.6,3233.7,0.495]
[1765502524207,6.16728668,3234.6,3233.7,0.9944]
[1765502524836,6.16728668,3234.6,3233.7,0.4994]
[1765502525037,6.16728668,3234.6,3233.8,0.495]
[1765502525200,0.66622867,3234.5,3233.7,0.4994]
[1765502525514,6.16728668,3234.6,3233.7,0.4994]
[1765502525515,5.50105651,3234.6,3233.8,0.495]
[1765502525712,3.09157237,3234.6,3233.8,0.495]
[1765502526113,3.09157237,3234.6,3233.7,0.4994]
[1765502526313,5.51691607,3234.6,3233.8,0.495]
[1765502526638,3.73384245,3234.6,3233.8,0.495]
[1765502526840,6.18257132,3234.9,3233.8,0.9944]
[1765502527140,12.36514264,3234.9,3232.8,0.46990997]
[1765502527449,0.58047529,3234.7,3232.9,0.4994]
[1765502527608,0.58047529,3234.7,3233.0,0.495]
[1765502527609,0.495,3234.6,3233.0,0.495]
[1765502528631,0.495,3234.6,3232.9,0.4994]
[1765502528843,7.16843966,3234.3,3232.8,0.6819]
[1765502529145,1.21184397,3234.2,3232.7,0.495]
[1765502529314,1.21184397,3234.2,3232.6,0.4994]
[1765502529515,1.21184397,3234.2,3232.7,0.495]
[1765502530052,1.79231926,3234.2,3232.6,0.4994]
[1765502530359,7.16843966,3233.8,3232.4,0.495]
[1765502530521,0.495,3233.7,3232.3,0.495]
[1765502530707,9.27758535,3233.6,3232.2,0.4994]
[1765502530914,12.3701138,3233.6,3232.2,0.4994]
[1765502531166,12.3701138,3233.6,3232.3,0.495]
[1765502531441,12.3701138,3233.6,3232.0,0.001]
[1765502531442,7.16843966,3233.3,3232.0,0.001]
[1765502531620,0.495,3233.3,3232.1,0.4994]
[1765502531814,9.27758535,3233.6,3232.1,0.4994]
[1765502532020,0.92775854,3233.5,3232.1,0.4994]
[1765502532224,0.92775854,3233.5,3232.2,0.495]
[1765502532928,9.77315919,3233.4,3232.1,0.9944]
[1765502533442,9.77315919,3233.4,3232.2,0.4927]
[1765502534613,9.77315919,3233.4,3232.2,0.495]
[1765502534840,6.18582208,3233.2,3232.2,0.495]
[1765502535038,9.27873312,3233.2,3232.2,0.4927]
[1765502535259,6.18582208,3233.2,3232.2,0.4927]
[1765502537145,9.27873312,3233.2,3232.2,0.9877]
[1765502538065,9.27873312,3233.2,3232.1,0.4557]
[1765502538224,0.8615039,3233.1,3232.1,0.86028444]
[1765502538554,6.18582208,3233.2,3232.1,0.89122407]
[1765502538876,6.18582208,3233.2,3232.2,0.4557]
[1765502539749,6.18582208,3233.2,3232.2,3.54949201]
[1765502540131,6.18582208,3233.2,3232.3,0.4557]
[1765502540432,3.09291104,3233.2,3232.3,0.4557]
[1765502540631,6.18467436,3233.8,3233.1,0.499]
[1765502540830,3.09233718,3233.8,3233.1,0.499]
[1765502541536,3.09233718,3233.8,3232.9,0.495]
[1765502541737,3.09233718,3233.8,3232.6,0.4557]
[1765502541942,3.09233718,3233.8,3232.9,0.495]
[1765502542142,0.92768759,3233.7,3232.9,0.495]
[1765502542341,0.92768759,3233.7,3232.6,0.4557]
[1765502542751,0.92768759,3233.7,3232.7,0.495]
[1765502542955,0.92768759,3233.7,3232.4,0.191]
[1765502542956,12.8651138,3233.6,3232.4,0.191]
[1765502543160,7.16843966,3233.4,3232.1,0.191]
[1765502543321,0.7748915,3233.3,3232.1,0.191]
[1765502543521,0.495,3233.2,3232.2,0.4557]
[1765502545036,9.27902013,3233.1,3232.2,0.4557]
[1765502545930,9.27902013,3233.1,3232.1,0.191]
[1765502548525,9.27902013,3233.1,3232.1,0.6467]
[1765502548728,10.25642214,3233.1,3232.1,0.6467]